[Event "FIDE Women's Grand Swiss 2023"]
[Site "Villa Marina, Douglas, Isle of Man, Isle Of Man"]
[Date "2023.10.30"]
[Round "6.16"]
[White "Batsiashvili, Nino"]
[Black "Tania, Sachdev"]
[Result "1-0"]
[TimeControl "40/90 + 30 + 30s/move"]
[WhiteFideId "13602993"]
[BlackFideId "5007844"]
[WhiteElo "2475"]
[BlackElo "2389"]

1. d4 {[%clk 01:30:59]} {[%emt 00:00:01]} Nf6 {[%clk 01:30:51]} {[%emt
00:00:09]} 2. c4 {[%clk 01:31:25]} {[%emt 00:00:03]} e6 {[%clk 01:31:10]}
{[%emt 00:00:12]} 3. Nf3 {[%clk 01:31:52]} {[%emt 00:00:03]} d5 {[%clk
01:31:34]} {[%emt 00:00:05]} 4. Nc3 {[%clk 01:32:19]} {[%emt 00:00:04]} Be7
{[%clk 01:31:40]} {[%emt 00:00:24]} 5. cxd5 {[%clk 01:32:45]} {[%emt 00:00:04]}
exd5 {[%clk 01:31:54]} {[%emt 00:00:16]} 6. Bf4 {[%clk 01:33:11]} {[%emt
00:00:03]} c6 {[%clk 01:31:56]} {[%emt 00:00:29]} 7. e3 {[%clk 01:31:52]}
{[%emt 00:01:49]} Bf5 {[%clk 01:30:45]} {[%emt 00:01:40]} 8. h3 {[%clk
01:32:15]} {[%emt 00:00:07]} Nbd7 {[%clk 01:25:05]} {[%emt 00:06:10]} 9. g4
{[%clk 01:29:21]} {[%emt 00:03:24]} Bg6 {[%clk 01:24:13]} {[%emt 00:01:24]} 10.
Nh4 {[%clk 01:22:22]} {[%emt 00:07:28]} Nf8 {[%clk 01:16:56]} {[%emt 00:07:47]}
11. Qb3 {[%clk 01:06:18]} {[%emt 00:16:33]} Qb6 {[%clk 01:02:32]} {[%emt
00:14:55]} 12. Nxg6 {[%clk 01:04:55]} {[%emt 00:01:53]} hxg6 {[%clk 00:59:11]}
{[%emt 00:03:51]} 13. Bg2 {[%clk 01:04:43]} {[%emt 00:00:41]} Ne6 {[%clk
00:58:38]} {[%emt 00:01:04]} 14. Bg3 {[%clk 01:04:54]} {[%emt 00:00:18]} Qxb3
{[%clk 00:45:03]} {[%emt 00:14:06]} 15. axb3 {[%clk 01:05:22]} {[%emt
00:00:01]} Kd7 {[%clk 00:45:25]} {[%emt 00:00:08]} 16. f3 {[%clk 01:01:34]}
{[%emt 00:04:18]} Bd6 {[%clk 00:43:25]} {[%emt 00:02:31]} 17. Bf2 {[%clk
00:59:49]} {[%emt 00:02:14]} a6 {[%clk 00:43:48]} {[%emt 00:00:08]} 18. O-O-O
{[%clk 00:58:52]} {[%emt 00:01:26]} Rae8 {[%clk 00:40:48]} {[%emt 00:03:32]} 19.
h4 {[%clk 00:56:49]} {[%emt 00:02:32]} Kc7 {[%clk 00:37:23]} {[%emt 00:03:55]}
20. Kc2 {[%clk 00:52:31]} {[%emt 00:04:47]} Kb8 {[%clk 00:35:30]} {[%emt
00:02:23]} 21. Bh3 {[%clk 00:48:02]} {[%emt 00:04:58]} g5 {[%clk 00:26:07]}
{[%emt 00:09:55]} 22. h5 {[%clk 00:48:03]} {[%emt 00:00:28]} Rc8 {[%clk
00:22:15]} {[%emt 00:04:22]} 23. Kb1 {[%clk 00:44:35]} {[%emt 00:03:58]} Rhd8
{[%clk 00:21:10]} {[%emt 00:01:36]} 24. e4 {[%clk 00:42:59]} {[%emt 00:02:06]}
dxe4 {[%clk 00:18:49]} {[%emt 00:02:51]} 25. fxe4 {[%clk 00:41:15]} {[%emt
00:02:14]} Nf4 {[%clk 00:17:22]} {[%emt 00:01:57]} 26. Bg3 {[%clk 00:32:16]}
{[%emt 00:09:28]} Nxh3 {[%clk 00:15:03]} {[%emt 00:02:50]} 27. Bxd6+ {[%clk
00:32:35]} {[%emt 00:00:11]} Rxd6 {[%clk 00:15:27]} {[%emt 00:00:06]} 28. Rxh3
{[%clk 00:33:01]} {[%emt 00:00:03]} Ng8 {[%clk 00:09:14]} {[%emt 00:06:44]} 29.
e5 {[%clk 00:32:17]} {[%emt 00:01:14]} Rd7 {[%clk 00:09:09]} {[%emt 00:00:35]}
30. Ne4 {[%clk 00:32:37]} {[%emt 00:00:09]} Nh6 {[%clk 00:06:09]} {[%emt
00:03:30]} 31. Nxg5 {[%clk 00:27:18]} {[%emt 00:05:49]} Nxg4 {[%clk 00:06:31]}
{[%emt 00:00:08]} 32. Rg1 {[%clk 00:27:42]} {[%emt 00:00:06]} Nh6 {[%clk
00:03:46]} {[%emt 00:03:15]} 33. Nf3 {[%clk 00:26:53]} {[%emt 00:01:19]} Nf5
{[%clk 00:01:32]} {[%emt 00:02:44]} 34. Rg5 {[%clk 00:25:23]} {[%emt 00:02:00]}
g6 {[%clk 00:02:01]} {[%emt 00:00:01]} 35. h6 {[%clk 00:19:18]} {[%emt
00:06:35]} Nxd4 {[%clk 00:01:14]} {[%emt 00:01:18]} 36. Nxd4 {[%clk 00:19:46]}
{[%emt 00:00:02]} Rxd4 {[%clk 00:01:40]} {[%emt 00:00:04]} 37. e6 {[%clk
00:20:03]} {[%emt 00:00:13]} fxe6 {[%clk 00:01:27]} {[%emt 00:00:43]} 38. Rxg6
{[%clk 00:20:21]} {[%emt 00:00:12]} Rh8 {[%clk 00:00:46]} {[%emt 00:01:10]} 39.
Rxe6 {[%clk 00:18:18]} {[%emt 00:02:34]} Rd7 {[%clk 00:00:44]} {[%emt
00:00:31]} 40. Kc2 {[%clk 00:18:36]} {[%emt 00:00:12]} Kc7 {[%clk 00:00:38]}
{[%emt 00:00:37]} 41. Kc3 {[%clk 00:18:52]} {[%emt 00:00:13]} Rhh7 {[%clk
00:15:28]} {[%emt 00:15:40]} 42. Rg6 {[%clk 00:46:49]} {[%emt 00:02:33]} Kb6
{[%clk 00:08:17]} {[%emt 00:07:42]} 43. b4 {[%clk 00:46:06]} {[%emt 00:01:13]}
Ka7 {[%clk 00:05:53]} {[%emt 00:02:54]} 44. Rf6 {[%clk 00:42:44]} {[%emt
00:03:51]} Kb6 {[%clk 00:05:44]} {[%emt 00:00:39]} 45. Rg3 {[%clk 00:43:09]}
{[%emt 00:00:05]} Rh8 {[%clk 00:05:23]} {[%emt 00:00:52]} 46. Rg5 {[%clk
00:41:12]} {[%emt 00:02:25]} Rhh7 {[%clk 00:03:21]} {[%emt 00:02:33]} 47. Rg8
{[%clk 00:41:19]} {[%emt 00:00:23]} Rhe7 {[%clk 00:03:02]} {[%emt 00:00:50]} 48.
Rg3 {[%clk 00:40:38]} {[%emt 00:01:11]} Re2 {[%clk 00:01:37]} {[%emt 00:01:54]}
49. Rh3 {[%clk 00:34:15]} {[%emt 00:06:53]} Ree7 {[%clk 00:02:00]} {[%emt
00:00:08]} 50. Rd3 {[%clk 00:34:20]} {[%emt 00:00:25]} Rc7 {[%clk 00:01:43]}
{[%emt 00:00:47]} 51. Rg6 {[%clk 00:34:06]} {[%emt 00:00:43]} Rh7 {[%clk
00:01:20]} {[%emt 00:00:53]} 52. Rdg3 {[%clk 00:32:55]} {[%emt 00:01:41]} Rh8
{[%clk 00:01:46]} {[%emt 00:00:05]} 53. Kd4 {[%clk 00:33:09]} {[%emt 00:00:15]}
Rch7 {[%clk 00:01:29]} {[%emt 00:00:48]} 54. Rh3 {[%clk 00:33:31]} {[%emt
00:00:07]} Kb5 {[%clk 00:00:46]} {[%emt 00:01:15]} 55. Rg7 {[%clk 00:32:39]}
{[%emt 00:01:21]} Kxb4 {[%clk 00:00:54]} {[%emt 00:00:22]} 56. Rxh7 {[%clk
00:32:47]} {[%emt 00:00:21]} Rxh7 {[%clk 00:01:23]} 57. Ke5 {[%clk 00:33:10]}
{[%emt 00:00:07]} a5 {[%clk 00:01:06]} {[%emt 00:00:48]} 58. Kf6 {[%clk
00:33:39]} {[%emt 00:00:01]} b5 {[%clk 00:00:46]} {[%emt 00:00:50]} 59. Kg6
{[%clk 00:34:08]} {[%emt 00:00:01]} Rh8 {[%clk 00:01:13]} {[%emt 00:00:03]} 60.
Kg7 {[%clk 00:34:15]} {[%emt 00:00:23]} Rd8 {[%clk 00:01:18]} {[%emt 00:00:23]}
61. h7 {[%clk 00:34:43]} {[%emt 00:00:03]} Rd7+ {[%clk 00:00:40]} {[%emt
00:01:09]} 62. Kf6 {[%clk 00:32:16]} {[%emt 00:02:57]} Rd8 {[%clk 00:00:34]}
{[%emt 00:00:35]} 63. Rg3 {[%clk 00:26:14]} {[%emt 00:06:32]} Rd6+ {[%clk
00:01:00]} {[%emt 00:00:05]} 64. Kg7 {[%clk 00:26:37]} {[%emt 00:00:07]} Rd7+
{[%clk 00:01:25]} {[%emt 00:00:05]} 65. Kh6 {[%clk 00:26:43]} {[%emt 00:00:23]}
Rd8 {[%clk 00:00:53]} {[%emt 00:01:03]} 66. Rf3 {[%clk 00:20:30]} {[%emt
00:06:43]} a4 {[%clk 00:00:34]} {[%emt 00:00:49]} 67. Kg7 {[%clk 00:20:59]}
Rd7+ {[%clk 00:00:56]} {[%emt 00:00:08]} 68. Kg8 {[%clk 00:21:25]} {[%emt
00:00:04]} Rxh7 {[%clk 00:01:13]} {[%emt 00:00:13]} 69. Kxh7 {[%clk 00:21:54]}
Kc4 {[%clk 00:00:54]} {[%emt 00:00:50]} 70. Kg6 {[%clk 00:22:06]} {[%emt
00:00:18]} b4 {[%clk 00:01:11]} {[%emt 00:00:12]} 71. Kf5 {[%clk 00:22:32]}
{[%emt 00:00:04]} a3 {[%clk 00:00:35]} {[%emt 00:01:07]} 72. bxa3 {[%clk
00:22:57]} {[%emt 00:00:05]} b3 {[%clk 00:00:59]} {[%emt 00:00:06]} 73. Rf4+
{[%clk 00:17:46]} {[%emt 00:05:40]} Kc3 {[%clk 00:01:10]} {[%emt 00:00:20]} 74.
a4 {[%clk 00:18:15]} c5 {[%clk 00:00:40]} {[%emt 00:01:00]} 75. a5 {[%clk
00:18:31]} {[%emt 00:00:13]} c4 {[%clk 00:00:41]} {[%emt 00:00:29]} 76. a6
{[%clk 00:18:01]} {[%emt 00:01:01]} b2 {[%clk 00:00:48]} {[%emt 00:00:22]} 77.
Rf1 {[%clk 00:18:30]} {[%emt 00:00:01]} Kc2 {[%clk 00:00:39]} {[%emt 00:00:40]}
78. a7 {[%clk 00:18:53]} {[%emt 00:00:07]} 1-0

[Event "FIDE Women's Grand Swiss 2023"]
[Site "Villa Marina, Douglas, Isle of Man, Isle Of Man"]
[Date "2023.10.30"]
[Round "6.17"]
[White "Wagner, Dinara"]
[Black "Guichard, Pauline"]
[Result "1/2-1/2"]
[TimeControl "40/90 + 30 + 30s/move"]
[WhiteFideId "24157570"]
[BlackFideId "639370"]
[WhiteElo "2461"]
[BlackElo "2358"]

1. d4 {[%clk 01:30:57]} {[%emt 00:00:02]} Nf6 {[%clk 01:30:52]} {[%emt
00:00:08]} 2. c4 {[%clk 01:31:24]} {[%emt 00:00:04]} e6 {[%clk 01:31:16]}
{[%emt 00:00:06]} 3. Nc3 {[%clk 01:31:51]} {[%emt 00:00:03]} Bb4 {[%clk
01:31:39]} {[%emt 00:00:07]} 4. e3 {[%clk 01:32:16]} {[%emt 00:00:05]} O-O
{[%clk 01:31:57]} {[%emt 00:00:11]} 5. Bd3 {[%clk 01:32:37]} {[%emt 00:00:09]}
d5 {[%clk 01:32:13]} {[%emt 00:00:13]} 6. a3 {[%clk 01:32:50]} {[%emt
00:00:19]} Bxc3+ {[%clk 01:32:27]} {[%emt 00:00:17]} 7. bxc3 {[%clk 01:33:15]}
{[%emt 00:00:04]} dxc4 {[%clk 01:32:27]} {[%emt 00:00:30]} 8. Bxc4 {[%clk
01:33:40]} {[%emt 00:00:05]} c5 {[%clk 01:32:47]} {[%emt 00:00:09]} 9. Ne2
{[%clk 01:33:59]} {[%emt 00:00:12]} Qc7 {[%clk 01:32:38]} {[%emt 00:00:39]} 10.
Ba2 {[%clk 01:34:17]} {[%emt 00:00:12]} b6 {[%clk 01:22:49]} {[%emt 00:10:19]}
11. O-O {[%clk 01:33:43]} {[%emt 00:01:03]} Ba6 {[%clk 01:22:40]} {[%emt
00:00:40]} 12. Re1 {[%clk 01:33:54]} {[%emt 00:00:19]} Nc6 {[%clk 01:21:15]}
{[%emt 00:01:54]} 13. Ng3 {[%clk 01:33:36]} {[%emt 00:00:48]} Rfd8 {[%clk
01:18:13]} {[%emt 00:03:33]} 14. Rb1 {[%clk 01:33:46]} {[%emt 00:00:20]} Rac8
{[%clk 01:13:56]} {[%emt 00:04:47]} 15. Rb2 {[%clk 01:34:05]} {[%emt 00:00:10]}
Ne5 {[%clk 01:00:09]} {[%emt 00:14:18]} 16. Rd2 {[%clk 01:33:56]} {[%emt
00:00:38]} Nc4 {[%clk 00:59:39]} {[%emt 00:01:01]} 17. Bxc4 {[%clk 01:33:28]}
{[%emt 00:00:58]} Bxc4 {[%clk 01:00:04]} {[%emt 00:00:05]} 18. e4 {[%clk
01:32:43]} {[%emt 00:01:15]} Ne8 {[%clk 00:48:34]} {[%emt 00:11:59]} 19. Qg4
{[%clk 01:26:04]} {[%emt 00:07:09]} f6 {[%clk 00:48:27]} {[%emt 00:00:37]} 20.
h4 {[%clk 01:06:29]} {[%emt 00:20:06]} Qf7 {[%clk 00:39:15]} {[%emt 00:09:41]}
21. h5 {[%clk 01:03:29]} {[%emt 00:03:30]} cxd4 {[%clk 00:38:20]} {[%emt
00:01:26]} 22. cxd4 {[%clk 01:03:43]} {[%emt 00:00:16]} Rd7 {[%clk 00:36:45]}
{[%emt 00:02:05]} 23. Qf3 {[%clk 01:00:22]} {[%emt 00:03:50]} h6 {[%clk
00:36:40]} {[%emt 00:00:35]} 24. a4 {[%clk 00:51:11]} {[%emt 00:09:42]} Rcd8
{[%clk 00:33:10]} {[%emt 00:04:00]} 25. Bb2 {[%clk 00:50:18]} {[%emt 00:01:22]}
Ba6 {[%clk 00:33:21]} {[%emt 00:00:19]} 26. d5 {[%clk 00:32:34]} {[%emt
00:18:15]} Bb7 {[%clk 00:29:51]} {[%emt 00:04:00]} 27. dxe6 {[%clk 00:30:18]}
{[%emt 00:02:46]} Qxe6 {[%clk 00:30:15]} {[%emt 00:00:05]} 28. Rxd7 {[%clk
00:28:37]} {[%emt 00:02:11]} Rxd7 {[%clk 00:29:29]} {[%emt 00:01:17]} 29. Qf4
{[%clk 00:21:30]} {[%emt 00:07:37]} Nd6 {[%clk 00:28:30]} {[%emt 00:01:29]} 30.
Bc3 {[%clk 00:17:55]} {[%emt 00:04:05]} Kh7 {[%clk 00:23:03]} {[%emt 00:05:57]}
31. e5 {[%clk 00:10:20]} {[%emt 00:08:05]} Qd5 {[%clk 00:22:48]} {[%emt
00:00:45]} 32. f3 {[%clk 00:10:45]} {[%emt 00:00:05]} fxe5 {[%clk 00:22:30]}
{[%emt 00:00:48]} 33. Bxe5 {[%clk 00:10:31]} {[%emt 00:00:44]} Re7 {[%clk
00:18:23]} {[%emt 00:04:36]} 34. Bc3 {[%clk 00:07:39]} {[%emt 00:03:23]} Rxe1+
{[%clk 00:09:54]} {[%emt 00:08:59]} 35. Bxe1 {[%clk 00:08:05]} {[%emt
00:00:03]} Bc8 {[%clk 00:10:08]} {[%emt 00:00:16]} 36. Bc3 {[%clk 00:05:44]}
{[%emt 00:02:52]} Nf5 {[%clk 00:09:05]} {[%emt 00:01:33]} 37. Ne4 {[%clk
00:05:55]} {[%emt 00:00:19]} Bd7 {[%clk 00:02:17]} {[%emt 00:07:17]} 38. Qc7
{[%clk 00:01:35]} {[%emt 00:04:51]} Qd1+ {[%clk 00:01:26]} {[%emt 00:01:21]} 39.
Kh2 {[%clk 00:01:53]} {[%emt 00:00:12]} Ne3 {[%clk 00:01:41]} {[%emt 00:00:14]}
40. Nd2 {[%clk 00:01:10]} {[%emt 00:01:14]} Qxa4 {[%clk 00:00:43]} {[%emt
00:01:27]} 41. Qg3 {[%clk 00:27:29]} {[%emt 00:04:11]} Nf5 {[%clk 00:16:39]}
{[%emt 00:14:35]} 42. Qg6+ {[%clk 00:27:29]} {[%emt 00:00:29]} Kh8 {[%clk
00:09:06]} {[%emt 00:08:03]} 43. Ne4 {[%clk 00:27:42]} {[%emt 00:00:18]} Qc6
{[%clk 00:03:02]} {[%emt 00:06:34]} 44. Nf6 {[%clk 00:23:11]} {[%emt 00:05:00]}
Qd6+ {[%clk 00:03:25]} {[%emt 00:00:08]} 45. g3 {[%clk 00:23:32]} {[%emt
00:00:09]} Qxg3+ {[%clk 00:03:51]} {[%emt 00:00:04]} 46. Qxg3 {[%clk 00:23:59]}
{[%emt 00:00:03]} Nxg3 {[%clk 00:04:17]} {[%emt 00:00:03]} 47. Nxd7 {[%clk
00:24:25]} {[%emt 00:00:05]} Nxh5 {[%clk 00:04:41]} {[%emt 00:00:06]} 48. Be5
{[%clk 00:23:43]} {[%emt 00:01:12]} b5 {[%clk 00:04:18]} {[%emt 00:00:52]} 49.
Kh3 {[%clk 00:21:00]} {[%emt 00:03:13]} Kg8 {[%clk 00:04:24]} {[%emt 00:00:25]}
50. Kg4 {[%clk 00:18:15]} {[%emt 00:03:15]} g6 {[%clk 00:04:46]} {[%emt
00:00:08]} 51. Bc3 {[%clk 00:17:54]} {[%emt 00:00:51]} Ng7 {[%clk 00:04:16]}
{[%emt 00:00:59]} 52. Ne5 {[%clk 00:17:59]} {[%emt 00:00:25]} Kh7 {[%clk
00:03:31]} {[%emt 00:01:15]} 53. Nc6 {[%clk 00:17:52]} {[%emt 00:00:38]} a6
{[%clk 00:01:24]} {[%emt 00:02:37]} 54. Nb8 {[%clk 00:17:24]} {[%emt 00:00:57]}
g5 {[%clk 00:01:20]} {[%emt 00:00:34]} 55. Nxa6 {[%clk 00:16:59]} {[%emt
00:00:56]} Kg6 {[%clk 00:01:31]} {[%emt 00:00:18]} 56. Nc7 {[%clk 00:17:04]}
{[%emt 00:00:26]} Nf5 {[%clk 00:01:19]} {[%emt 00:00:43]} 57. Kh3 {[%clk
00:17:11]} {[%emt 00:00:22]} h5 {[%clk 00:01:41]} {[%emt 00:00:08]} 58. Kh2
{[%clk 00:15:48]} {[%emt 00:01:52]} g4 {[%clk 00:00:50]} {[%emt 00:01:22]} 59.
f4 {[%clk 00:16:15]} {[%emt 00:00:02]} Ne3 {[%clk 00:00:37]} {[%emt 00:00:44]}
60. Nxb5 {[%clk 00:13:51]} {[%emt 00:02:54]} Kf5 {[%clk 00:00:42]} {[%emt
00:00:25]} 61. Be5 {[%clk 00:13:55]} {[%emt 00:00:26]} Ke4 {[%clk 00:00:56]}
{[%emt 00:00:16]} 62. Kg3 {[%clk 00:12:30]} {[%emt 00:01:55]} Nf5+ {[%clk
00:01:04]} {[%emt 00:00:21]} 63. Kf2 {[%clk 00:12:50]} {[%emt 00:00:10]} Kd5
{[%clk 00:00:34]} {[%emt 00:01:02]} 64. Nc3+ {[%clk 00:12:33]} {[%emt
00:00:46]} Ke6 {[%clk 00:00:34]} {[%emt 00:00:29]} 65. Ne4 {[%clk 00:10:53]}
{[%emt 00:02:10]} Ne7 {[%emt 00:00:29]} 66. Bf6 {[%clk 00:09:18]} {[%emt
00:02:04]} Nd5 {[%clk 00:00:33]} {[%emt 00:00:34]} 67. Bg5 {[%clk 00:09:31]}
{[%emt 00:00:17]} h4 {[%clk 00:00:41]} {[%emt 00:00:21]} 68. Kg2 {[%clk
00:08:24]} {[%emt 00:01:37]} Nxf4+ {[%clk 00:00:36]} {[%emt 00:00:36]} 69. Bxf4
{[%clk 00:08:48]} {[%emt 00:00:06]} Kf5 {[%clk 00:01:04]} {[%emt 00:00:02]} 70.
Bg5 {[%clk 00:09:00]} {[%emt 00:00:17]} Kxe4 {[%clk 00:01:29]} {[%emt
00:00:05]} 1/2-1/2

[Event "FIDE Women's Grand Swiss 2023"]
[Site "Villa Marina, Douglas, Isle of Man, Isle Of Man"]
[Date "2023.10.30"]
[Round "6.18"]
[White "Aulia, Medina Warda"]
[Black "Cramling, Pia"]
[Result "0-1"]
[TimeControl "40/90 + 30 + 30s/move"]
[WhiteFideId "7101570"]
[BlackFideId "1700030"]
[WhiteElo "2362"]
[BlackElo "2446"]

1. e4 {[%clk 01:30:57]} {[%emt 00:00:02]} c5 {[%clk 01:30:49]} {[%emt
00:00:11]} 2. Nf3 {[%clk 01:31:21]} {[%emt 00:00:07]} e6 {[%clk 01:31:10]}
{[%emt 00:00:07]} 3. b3 {[%clk 01:31:37]} {[%emt 00:00:15]} a6 {[%clk
01:29:11]} {[%emt 00:02:28]} 4. Bb2 {[%clk 01:30:53]} {[%emt 00:01:15]} Nc6
{[%clk 01:28:59]} {[%emt 00:00:42]} 5. d4 {[%clk 01:28:59]} {[%emt 00:02:24]}
cxd4 {[%clk 01:28:16]} {[%emt 00:01:12]} 6. Nxd4 {[%clk 01:29:20]} {[%emt
00:00:10]} Qf6 {[%clk 01:20:39]} {[%emt 00:08:06]} 7. c3 {[%clk 01:26:32]}
{[%emt 00:03:19]} Bc5 {[%clk 01:16:11]} {[%emt 00:04:58]} 8. Be2 {[%clk
01:24:58]} {[%emt 00:02:05]} e5 {[%clk 01:14:38]} {[%emt 00:02:02]} 9. Nf3
{[%clk 01:24:13]} {[%emt 00:01:16]} Qg6 {[%clk 01:05:31]} {[%emt 00:09:36]} 10.
O-O {[%clk 01:24:37]} {[%emt 00:00:06]} Nge7 {[%clk 01:05:08]} {[%emt
00:00:53]} 11. b4 {[%clk 01:21:11]} {[%emt 00:03:56]} Bb6 {[%clk 01:01:23]}
{[%emt 00:04:14]} 12. Na3 {[%clk 01:14:30]} {[%emt 00:07:12]} O-O {[%clk
01:00:01]} {[%emt 00:01:52]} 13. b5 {[%clk 01:12:54]} {[%emt 00:02:06]} axb5
{[%clk 01:00:07]} {[%emt 00:00:23]} 14. Nxb5 {[%clk 01:13:21]} {[%emt
00:00:04]} Bc5 {[%clk 00:58:06]} {[%emt 00:02:30]} 15. Nd2 {[%clk 01:08:04]}
{[%emt 00:05:48]} d6 {[%clk 00:54:14]} {[%emt 00:04:20]} 16. Bh5 {[%clk
01:06:23]} {[%emt 00:02:12]} Qg5 {[%clk 00:51:52]} {[%emt 00:02:51]} 17. Nb3
{[%clk 01:04:19]} {[%emt 00:02:35]} Ng6 {[%clk 00:48:51]} {[%emt 00:03:31]} 18.
Bxg6 {[%clk 00:50:19]} {[%emt 00:14:31]} Qxg6 {[%clk 00:42:42]} {[%emt
00:06:38]} 19. Nxc5 {[%clk 00:50:01]} {[%emt 00:00:49]} dxc5 {[%clk 00:43:07]}
{[%emt 00:00:04]} 20. Nc7 {[%clk 00:50:23]} {[%emt 00:00:07]} Rb8 {[%clk
00:34:00]} {[%emt 00:09:38]} 21. Qf3 {[%clk 00:49:13]} {[%emt 00:01:40]} Rd8
{[%clk 00:32:54]} {[%emt 00:01:36]} 22. h3 {[%clk 00:45:12]} {[%emt 00:04:32]}
Be6 {[%clk 00:31:52]} {[%emt 00:01:31]} 23. Qe3 {[%clk 00:43:24]} {[%emt
00:02:19]} b6 {[%clk 00:31:55]} {[%emt 00:00:26]} 24. a4 {[%clk 00:40:58]}
{[%emt 00:02:57]} Rd7 {[%clk 00:27:40]} {[%emt 00:04:44]} 25. Nxe6 {[%clk
00:38:07]} {[%emt 00:03:22]} Qxe6 {[%clk 00:28:05]} {[%emt 00:00:04]} 26. f4
{[%clk 00:38:35]} {[%emt 00:00:03]} exf4 {[%clk 00:27:45]} {[%emt 00:00:49]} 27.
Qxf4 {[%clk 00:39:02]} {[%emt 00:00:03]} Re8 {[%clk 00:27:37]} {[%emt
00:00:38]} 28. Rab1 {[%clk 00:38:21]} {[%emt 00:01:12]} Ne5 {[%clk 00:26:15]}
{[%emt 00:01:50]} 29. a5 {[%clk 00:37:25]} {[%emt 00:01:28]} bxa5 {[%clk
00:26:15]} {[%emt 00:00:29]} 30. Ba3 {[%clk 00:37:53]} {[%emt 00:00:03]} Nd3
{[%clk 00:23:52]} {[%emt 00:02:52]} 31. Qg3 {[%clk 00:38:06]} {[%emt 00:00:18]}
h6 {[%clk 00:21:15]} {[%emt 00:03:06]} 32. Rb5 {[%clk 00:35:16]} {[%emt
00:03:21]} Qxe4 {[%clk 00:14:52]} {[%emt 00:06:52]} 33. Rxa5 {[%clk 00:34:58]}
{[%emt 00:00:49]} Qc4 {[%clk 00:12:06]} {[%emt 00:03:13]} 34. Rb1 {[%clk
00:33:37]} {[%emt 00:01:54]} Rde7 {[%clk 00:09:48]} {[%emt 00:02:47]} 35. Kh2
{[%clk 00:33:09]} {[%emt 00:00:59]} Re2 {[%clk 00:08:19]} {[%emt 00:01:57]} 36.
Rb8 {[%clk 00:31:49]} {[%emt 00:01:52]} Rxb8 {[%clk 00:07:09]} {[%emt
00:01:40]} 37. Qxb8+ {[%clk 00:32:13]} {[%emt 00:00:06]} Kh7 {[%clk 00:07:35]}
{[%emt 00:00:03]} 38. Qg3 {[%clk 00:29:41]} {[%emt 00:03:03]} Nf4 {[%clk
00:03:40]} {[%emt 00:04:23]} 39. Rxc5 {[%clk 00:30:04]} {[%emt 00:00:09]} Qe4
{[%clk 00:03:58]} {[%emt 00:00:10]} 0-1